bitfinex/quotes_BTCUSD_20220109
["timestamp","ask_amount","ask_price","bid_price","bid_amount"]
[1641722992091,1.59679486,41553.0,41552.0,0.00103]
[1641722992293,1.05,41552.0,41551.0,0.00414]
[1641722992492,2.302693,41552.0,41551.0,0.00414]
[1641722992700,2.46032752,41552.0,41551.0,0.00414]
[1641722992892,2.47332752,41552.0,41551.0,0.00414]
[1641722993293,2.47332752,41552.0,41551.0,0.00448976]
[1641722993693,2.53354881,41552.0,41551.0,0.00448976]
[1641722994094,2.52054881,41552.0,41551.0,0.00448976]
[1641722994493,2.62054881,41552.0,41551.0,0.00448976]
[1641722994893,2.63454881,41552.0,41551.0,0.00448976]
[1641722995349,2.98454881,41552.0,41551.0,0.00448976]
[1641722995542,2.53454881,41552.0,41551.0,0.00449821]
[1641722996144,2.52054881,41552.0,41551.0,0.00449821]
[1641722996541,2.52054881,41552.0,41551.0,0.00484178]
[1641722996742,2.52054881,41552.0,41551.0,0.00448357]
[1641722996941,2.53254881,41552.0,41551.0,0.00448357]
[1641722997143,2.63254881,41552.0,41551.0,0.00448357]
[1641722997643,2.53254881,41552.0,41551.0,0.00482714]
[1641722997841,2.53254881,41552.0,41551.0,0.00448357]
[1641722998044,2.52054881,41552.0,41551.0,0.00448357]
[1641722998243,2.52054881,41552.0,41551.0,0.00515209]
[1641722998743,2.52054881,41552.0,41551.0,0.00549566]
[1641722998996,2.53254881,41552.0,41551.0,0.00515209]
[1641722999797,2.53254881,41552.0,41551.0,0.00549547]
[1641722999997,2.52054881,41552.0,41551.0,0.0051519]
[1641723000803,2.53054881,41552.0,41551.0,0.0051519]
[1641723001002,2.53054881,41552.0,41551.0,0.0051525]
[1641723001601,2.63054881,41552.0,41551.0,0.0051525]
[1641723001800,1.05,41551.0,41548.0,0.00043]
[1641723002003,2.405863,41551.0,41548.0,0.00043]
[1641723002849,2.415863,41551.0,41548.0,0.00043]
[1641723003651,2.415863,41551.0,41545.0,0.00033]
[1641723003652,0.1501,41549.0,41545.0,0.00033]
[1641723003852,1.05,41544.0,41535.0,0.00032]
[1641723004051,1.0,41540.0,41535.0,0.00032]
[1641723004256,0.386293,41538.0,41530.0,0.00043]
[1641723004452,1.136293,41534.0,41530.0,0.00043]
[1641723004654,1.702793,41533.0,41530.0,0.00043]
[1641723004851,1.22988386,41533.0,41530.0,0.00043]
[1641723005052,1.32988386,41533.0,41530.0,0.00043]
[1641723005454,1.32988386,41533.0,41532.0,0.01066785]
[1641723006692,1.48115856,41533.0,41532.0,0.01056785]
[1641723006893,2.60240156,41533.0,41532.0,0.00936785]
[1641723007194,2.15155139,41533.0,41532.0,0.00936785]
[1641723007392,1.286293,41531.0,41529.0,0.00043]
[1641723007594,2.102793,41530.0,41529.0,0.00043]
[1641723007992,2.202793,41530.0,41529.0,0.00043]
[1641723008393,2.302793,41530.0,41529.0,0.00043]
[1641723008593,0.283123,41526.0,41525.0,3e-05]
[1641723008791,1.44693026,41526.0,41525.0,3e-05]
[1641723008990,1.71566278,41526.0,41525.0,3e-05]
[1641723009191,1.87591678,41526.0,41525.0,3e-05]
[1641723009394,2.05480109,41526.0,41525.0,3e-05]
[1641723009592,2.17946394,41526.0,41525.0,3e-05]
[1641723009791,2.17946394,41526.0,41525.0,0.00038408]
[1641723010243,2.27608394,41526.0,41525.0,0.00038408]
[1641723010744,2.37608394,41526.0,41525.0,0.00038408]
[1641723010947,2.64034141,41526.0,41525.0,0.00038408]
[1641723011344,5.35817783,41526.0,41525.0,0.00038408]
[1641723012145,5.34717783,41526.0,41525.0,0.00038408]
[1641723012846,5.35817783,41526.0,41525.0,0.00038408]
[1641723013246,2.64087473,41526.0,41525.0,0.0003839]
[1641723013449,2.44425473,41526.0,41525.0,0.0003839]
[1641723014187,2.43325473,41526.0,41525.0,0.0003839]
[1641723014989,2.34525473,41526.0,41525.0,0.0003839]
[1641723015190,2.34525473,41526.0,41525.0,0.00072343]
[1641723015390,2.34525473,41526.0,41525.0,0.00036953]
[1641723015788,2.34525473,41526.0,41525.0,0.00070906]
[1641723015789,2.09199726,41526.0,41525.0,0.00070906]
[1641723016190,2.07999726,41526.0,41525.0,0.00036953]
[1641723016391,2.19732726,41526.0,41525.0,0.00036953]
[1641723016791,2.24732726,41526.0,41525.0,0.00036953]
[1641723016989,2.30832726,41526.0,41525.0,0.00036953]
[1641723017192,2.36838529,41526.0,41525.0,0.00036953]
[1641723017644,2.70230012,41526.0,41525.0,0.00036953]
[1641723017844,1.7250047,41526.0,41525.0,0.00036953]
[1641723018047,1.35835655,41526.0,41525.0,0.00036953]
[1641723018245,1.35854902,41526.0,41525.0,0.00093942]
[1641723018445,1.25854902,41526.0,41525.0,0.00093942]
[1641723018945,1.28054902,41526.0,41525.0,0.00093942]
[1641723019546,1.68405393,41526.0,41525.0,0.00093942]
[1641723019948,1.28054902,41526.0,41525.0,0.00093942]
[1641723020148,1.28054902,41526.0,41525.0,0.00094]
[1641723020749,1.25854902,41526.0,41525.0,0.00094]
[1641723020947,1.27454902,41526.0,41525.0,0.00094]
[1641723021798,1.27454902,41526.0,41522.0,0.042357]
[1641723021999,1.27454902,41526.0,41522.0,0.00032]
[1641723022300,1.25854902,41526.0,41525.0,0.00034011]
[1641723022898,1.26954902,41526.0,41525.0,0.00034011]
[1641723023101,1.2690157,41526.0,41525.0,0.00034011]
[1641723023499,1.2690157,41526.0,41522.0,0.00032]
[1641723023699,1.3690157,41526.0,41522.0,0.00032]
[1641723023905,0.00125431,41524.0,41522.0,0.00032]
[1641723024100,1.108163,41523.0,41522.0,0.00032]
[1641723024503,1.208163,41523.0,41522.0,0.00032]
[1641723024899,1.27040016,41523.0,41522.0,0.00032]
[1641723025144,1.31820016,41523.0,41522.0,0.00032]
[1641723025945,1.21636327,41523.0,41522.0,0.00032]
[1641723026146,1.20624022,41523.0,41522.0,0.00032]
[1641723026448,1.2007876,41523.0,41522.0,0.00032]
[1641723026646,1.28845614,41523.0,41522.0,0.00032]
[1641723027048,1.35045614,41523.0,41522.0,0.00032]
[1641723028247,1.28845614,41523.0,41522.0,0.00032]
[1641723028889,1.18845614,41523.0,41522.0,0.00032]
[1641723029095,1.19945614,41523.0,41522.0,0.00032]
[1641723029590,1.09945614,41523.0,41522.0,0.00032]
[1641723029994,1.05165614,41523.0,41522.0,0.00032]
[1641723030191,1.14065614,41523.0,41522.0,0.00032]
[1641723030993,1.15165614,41523.0,41522.0,0.00032]
[1641723031795,1.05165614,41523.0,41522.0,0.00032]
[1641723032940,1.06365614,41523.0,41522.0,0.00032]
[1641723034146,1.04065614,41523.0,41522.0,0.00032]
[1641723034943,1.09065614,41523.0,41522.0,0.00132]
[1641723036391,1.04065614,41523.0,41522.0,0.00032]
[1641723037092,1.06665614,41523.0,41522.0,0.00032]
[1641723038294,1.04065614,41523.0,41522.0,0.00032]
[1641723039096,1.05865614,41523.0,41522.0,0.00032]
[1641723040143,1.04065614,41523.0,41522.0,0.00032]
[1641723040946,1.339046,41523.0,41522.0,0.00032]
[1641723042146,1.05365614,41523.0,41522.0,0.00032]
[1641723042949,1.05465614,41523.0,41522.0,0.00532]
[1641723044294,1.04065614,41523.0,41522.0,0.00032]
[1641723045097,1.05565614,41523.0,41522.0,0.00432]
[1641723046297,1.04065614,41523.0,41522.0,0.00032]
[1641723047101,1.05965614,41523.0,41522.0,0.00032]
[1641723048441,1.04065614,41523.0,41522.0,0.00032]
[1641723048642,1.14065614,41523.0,41522.0,0.00032]
[1641723049041,1.16365614,41523.0,41522.0,0.00032]
[1641723049943,1.06365614,41523.0,41522.0,0.00032]
[1641723050144,1.04065614,41523.0,41522.0,0.00032]
[1641723050945,1.05765614,41523.0,41522.0,0.00332]
[1641723052396,1.04065614,41523.0,41522.0,0.00032]
[1641723053093,1.06465614,41523.0,41522.0,0.00032]
[1641723054295,1.04065614,41523.0,41522.0,0.00032]
[1641723054697,1.04065614,41523.0,41522.0,1.46090194]
[1641723054698,0.02236932,41523.0,41522.0,1.46090194]
[1641723054902,0.006,41526.0,41523.0,1.05]
[1641723055154,0.10392622,41529.0,41528.0,0.00124442]
[1641723055353,0.10392622,41529.0,41528.0,1.58559242]
[1641723055552,0.00045266,41534.0,41528.0,1.88264435]
[1641723055756,0.00045266,41534.0,41531.0,0.09745716]
[1641723055953,0.00045266,41534.0,41531.0,0.59201716]
[1641723056254,0.00045266,41534.0,41531.0,0.65222878]
[1641723056458,0.00045274,41534.0,41531.0,0.65222878]
[1641723057154,0.015201,41532.0,41531.0,0.98801897]
[1641723058055,0.0156861,41532.0,41531.0,0.98887938]
[1641723058255,0.0156861,41532.0,41531.0,0.89263496]
[1641723058899,0.0006861,41532.0,41531.0,0.88263496]
[1641723059097,0.0006861,41532.0,41531.0,0.90163496]
[1641723059502,0.0006861,41532.0,41531.0,0.99787938]
[1641723060798,0.0006861,41532.0,41531.0,0.90163496]
[1641723061000,0.0006861,41532.0,41531.0,0.91763496]
[1641723061201,0.0006861,41532.0,41531.0,0.96763496]
[1641723062200,0.0006861,41532.0,41531.0,0.93263496]
[1641723062649,0.0006861,41532.0,41531.0,1.13263496]
[1641723063051,0.00045276,41534.0,41531.0,1.20563496]
[1641723063252,0.00045276,41534.0,41532.0,0.06020563]
[1641723063452,0.00045276,41534.0,41533.0,0.386548]
[1641723063650,0.00045276,41534.0,41533.0,0.73822722]
[1641723064653,0.00045278,41534.0,41533.0,0.73822722]
[1641723065053,0.00420836,41534.0,41533.0,0.07621]
[1641723065252,0.00420836,41534.0,41533.0,0.016]
[1641723065253,0.72276278,41534.0,41533.0,0.016]
[1641723065456,0.72651836,41534.0,41533.0,0.016]
[1641723066258,0.72651836,41534.0,41532.0,0.060211]
[1641723066500,0.72276278,41534.0,41532.0,0.06022]
[1641723066695,0.72276278,41534.0,41531.0,0.18150352]
[1641723066995,0.73276278,41534.0,41532.0,0.009]
[1641723067196,0.30823619,41533.0,41532.0,0.009]
[1641723067395,1.00823619,41533.0,41532.0,0.009]
[1641723067596,1.29132019,41533.0,41532.0,0.009]
[1641723067795,2.01363019,41533.0,41532.0,0.009]
[1641723067998,1.87283019,41533.0,41532.0,0.009]
[1641723068196,1.17283019,41533.0,41532.0,0.009]
[1641723068395,1.17283019,41533.0,41531.0,0.120421]
[1641723068595,0.283084,41532.0,41531.0,0.120421]
[1641723068796,1.005394,41532.0,41531.0,0.120421]
[1641723069196,1.005394,41532.0,41531.0,0.125421]
[1641723070451,1.005394,41532.0,41531.0,0.120421]
[1641723071049,1.019394,41532.0,41531.0,0.126421]
[1641723071450,1.01723083,41532.0,41531.0,0.126421]
[1641723072252,1.4481462,41532.0,41531.0,0.120421]
[1641723072454,1.4341462,41532.0,41531.0,0.120421]
[1641723073052,1.44868188,41532.0,41531.0,0.13440269]
[1641723074296,1.4349263,41532.0,41531.0,0.12140269]
[1641723074692,1.43868188,41532.0,41531.0,0.12140269]
[1641723075092,1.45268188,41532.0,41531.0,0.12640269]
[1641723075693,1.44768188,41532.0,41531.0,0.12640269]
[1641723076394,1.43368188,41532.0,41531.0,0.12140269]
[1641723077195,1.43868188,41532.0,41531.0,0.13040269]
[1641723078444,1.43368188,41532.0,41531.0,0.12140269]
[1641723078648,1.43368188,41532.0,41531.0,0.24184555]
[1641723079046,1.44768188,41532.0,41531.0,0.24884555]
[1641723079245,1.44768188,41532.0,41531.0,0.18862555]
[1641723079645,1.44768188,41532.0,41531.0,0.12840269]
[1641723080244,1.44768188,41532.0,41531.0,0.12340269]
[1641723080445,1.43368188,41532.0,41531.0,0.11640269]
[1641723081249,1.44768188,41532.0,41531.0,0.12340269]
[1641723082499,1.43368188,41532.0,41531.0,0.11640269]
[1641723083098,1.49068188,41532.0,41531.0,0.11640269]
[1641723084299,1.43368188,41532.0,41531.0,0.11640269]
[1641723085150,1.44168188,41532.0,41531.0,0.12540269]
[1641723085551,1.44168188,41532.0,41531.0,0.00998169]
[1641723086353,1.43368188,41532.0,41531.0,0.00098169]
[1641723087154,1.44368188,41532.0,41531.0,0.01798169]
[1641723088159,1.44414536,41532.0,41531.0,0.01798169]
[1641723088357,1.43414536,41532.0,41531.0,0.00098169]
[1641723088997,0.55,41531.0,41526.0,0.00211452]
[1641723089200,0.999018,41530.0,41526.0,0.00211452]
[1641723089397,0.00375558,41527.0,41526.0,0.00211452]
[1641723089601,0.72606558,41527.0,41526.0,0.00211452]
[1641723089801,0.72606558,41527.0,41525.0,0.180675]
[1641723090001,0.72606558,41527.0,41524.0,0.18067998]
[1641723090200,0.3122258,41526.0,41524.0,0.18067998]
[1641723090899,0.3122258,41526.0,41524.0,0.24090298]
[1641723091102,0.3122258,41526.0,41524.0,0.29990298]
[1641723091901,0.41895972,41525.0,41524.0,0.29990298]
[1641723092099,0.41895972,41525.0,41524.0,0.23967498]
[1641723092500,0.41895972,41525.0,41524.0,0.18067498]
[1641723093145,0.41895972,41525.0,41524.0,0.21261176]
[1641723093347,0.41520414,41525.0,41524.0,0.21261176]
[1641723093547,0.41895972,41525.0,41524.0,0.21261176]
[1641723094351,0.41895972,41525.0,41524.0,0.18161176]
[1641723094549,0.41520414,41525.0,41524.0,0.18161176]
[1641723095150,0.41520414,41525.0,41524.0,0.24161176]
[1641723095348,0.41895972,41525.0,41524.0,0.24161176]
[1641723096398,0.41895972,41525.0,41524.0,0.18161176]
[1641723097201,0.41895972,41525.0,41524.0,0.24261176]
[1641723098404,0.41895972,41525.0,41524.0,0.18161176]
[1641723099207,0.42695972,41525.0,41524.0,0.18161176]
[1641723100651,0.41895972,41525.0,41524.0,0.18161176]
[1641723101251,0.42695972,41525.0,41524.0,0.18161176]
[1641723102450,0.41895972,41525.0,41524.0,0.18161176]
[1641723103251,0.42395972,41525.0,41524.0,0.18161176]
[1641723104300,0.00875558,41525.0,41524.0,0.18161176]
[1641723104500,0.00375558,41525.0,41524.0,0.56811376]
[1641723105203,0.00475558,41525.0,41524.0,0.18161176]
[1641723105401,0.001,41525.0,41524.0,0.18161176]
[1641723105600,0.00475558,41525.0,41524.0,0.18161176]
[1641723106403,0.00375558,41525.0,41524.0,0.18161176]
[1641723107202,0.00675558,41525.0,41524.0,0.18161176]
[1641723107753,0.003,41525.0,41524.0,0.18161176]
[1641723109156,0.001,41525.0,41524.0,0.18161176]
[1641723109958,0.001,41525.0,41524.0,0.12138876]
[1641723110160,0.31847278,41525.0,41524.0,0.00093678]
[1641723110359,0.59518078,41525.0,41524.0,0.00093678]
[1641723110559,1.31649078,41525.0,41524.0,0.00093678]
[1641723111396,1.32449078,41525.0,41524.0,0.00093678]
[1641723112601,1.31649078,41525.0,41524.0,0.00093678]
[1641723113095,1.31649078,41525.0,41522.0,0.00125678]
[1641723113396,0.65375558,41523.0,41522.0,0.00125678]
[1641723113596,1.31061773,41523.0,41522.0,0.00125678]
[1641723114399,1.00277358,41523.0,41522.0,0.00125678]
[1641723115247,1.01077358,41523.0,41522.0,0.00125678]
[1641723116447,1.00277358,41523.0,41522.0,0.00125678]
[1641723117248,1.01077358,41523.0,41522.0,0.00125678]
[1641723118447,1.00277358,41523.0,41522.0,0.00125678]
[1641723119296,1.01077358,41523.0,41522.0,0.00125678]
[1641723120501,1.00277358,41523.0,41522.0,0.00125678]
[1641723121299,1.01077358,41523.0,41522.0,0.00125678]
[1641723122647,1.00277358,41523.0,41522.0,0.00125678]
[1641723123249,1.00677358,41523.0,41522.0,0.00125678]
[1641723123649,1.00677358,41523.0,41521.0,0.06467]
[1641723123650,1.00677358,41523.0,41515.0,0.00021]
[1641723123954,1.00677358,41523.0,41507.0,0.7179043]
[1641723123955,0.45,41510.0,41507.0,0.7179043]
[1641723124150,0.45,41510.0,41508.0,0.00011]
[1641723124151,0.05285057,41509.0,41508.0,0.00011]
[1641723124351,0.77516057,41509.0,41508.0,0.00011]
[1641723124549,1.05186857,41509.0,41508.0,0.00011]
[1641723124750,1.664963,41509.0,41508.0,0.00011]
[1641723124952,1.764963,41509.0,41508.0,0.00011]
[1641723125352,1.226708,41508.0,41507.0,0.27850371]
[1641723125549,1.4082416,41508.0,41507.0,0.27850371]
[1641723126050,1.4685116,41508.0,41507.0,0.27850371]
[1641723127317,1.4835116,41508.0,41507.0,0.27890285]
[1641723127520,4.6220778,41508.0,41507.0,0.27890285]
[1641723128018,4.62254139,41508.0,41507.0,0.27961878]
[1641723128421,4.60754139,41508.0,41507.0,0.27956129]
[1641723129218,4.62154139,41508.0,41507.0,0.27956129]
[1641723129419,4.62154139,41508.0,41507.0,0.27990294]
[1641723129618,4.62154139,41508.0,41507.0,0.27956129]
[1641723130021,4.72154139,41508.0,41507.0,0.27956129]
[1641723130456,4.70754139,41508.0,41507.0,0.27956129]
[1641723131360,4.72154139,41508.0,41507.0,0.27956129]
[1641723131758,4.72154139,41508.0,41507.0,0.27954775]
[1641723132159,4.72154139,41508.0,41507.0,0.27454775]
[1641723132559,4.62154139,41508.0,41507.0,0.27454775]
[1641723132760,4.72154139,41508.0,41507.0,0.2745558]
[1641723133161,4.70754139,41508.0,41507.0,0.2745558]
[1641723133361,4.72054139,41508.0,41507.0,0.2745558]
[1641723133999,5.10067971,41508.0,41507.0,0.2745558]
[1641723134199,1.326708,41507.0,41506.0,0.00043]
[1641723134401,2.096818,41507.0,41506.0,0.00043]
[1641723134598,1.246718,41507.0,41506.0,0.00043]
[1641723135200,1.158818,41507.0,41506.0,0.00043]
[1641723135798,1.058818,41507.0,41506.0,0.00043]
[1641723136000,1.41497093,41507.0,41506.0,0.00043]
[1641723136500,1.046818,41507.0,41506.0,0.00043]
[1641723136700,1.34490555,41507.0,41506.0,0.00043]
[1641723137299,1.80890555,41507.0,41506.0,0.00043]
[1641723137501,1.45890555,41507.0,41506.0,0.00043]
[1641723138156,1.45890555,41507.0,41506.0,0.00096773]
[1641723138556,1.44490555,41507.0,41506.0,0.00096773]
[1641723139254,1.45590555,41507.0,41506.0,0.00096773]
[1641723139656,1.157818,41507.0,41506.0,0.00096773]
[1641723139856,1.257818,41507.0,41506.0,0.00096773]
[1641723140057,1.53973457,41507.0,41506.0,0.00096773]
[1641723140559,1.110277,41506.0,41502.0,0.05165613]
[1641723140858,1.23046358,41503.0,41502.0,0.05165613]
[1641723141057,2.10057358,41503.0,41502.0,0.05165613]
[1641723141258,0.01403,41500.0,41499.0,0.00021]
[1641723141513,0.01403,41500.0,41482.0,2.17129589]
[1641723141713,0.01403,41500.0,41482.0,2.57953378]
[1641723141714,0.00375558,41484.0,41482.0,2.57953378]
[1641723141910,0.37609518,41489.0,41483.0,0.386502]
[1641723142110,0.37609518,41489.0,41482.0,2.29183378]
[1641723142111,0.71606558,41488.0,41482.0,1.21482042]
[1641723142316,0.71606558,41488.0,41482.0,1.15453378]
[1641723142511,0.71231,41488.0,41482.0,1.15453378]
[1641723142811,0.00375558,41485.0,41482.0,0.81075937]
[1641723143110,0.71231,41484.0,41482.0,0.81075937]
[1641723143410,0.71606558,41484.0,41482.0,0.81075937]
[1641723144413,0.71231,41484.0,41482.0,0.81075937]
[1641723144614,0.71231,41484.0,41483.0,0.636502]
[1641723145014,0.71231,41484.0,41483.0,0.386502]
[1641723145551,0.71231,41484.0,41483.0,0.98544136]
[1641723145954,0.71231,41484.0,41483.0,0.98577919]
[1641723146151,0.71231,41484.0,41483.0,0.38683983]
[1641723146354,0.71231,41484.0,41483.0,0.00033783]
[1641723146355,0.71731717,41484.0,41483.0,0.00033783]
[1641723146655,0.71231,41484.0,41483.0,0.00033783]
[1641723147351,0.72057697,41484.0,41483.0,0.00033783]
[1641723147754,1.17440988,41484.0,41483.0,0.00033783]
[1641723148052,1.44985091,41484.0,41483.0,0.00107747]
[1641723148355,1.45107248,41484.0,41483.0,0.00107747]
[1641723148656,1.59187248,41484.0,41483.0,0.00107747]
[1641723149300,1.076708,41483.0,41481.0,0.02099745]
[1641723149499,1.02867828,41482.0,41481.0,0.02099745]
[1641723149698,1.02867828,41482.0,41481.0,0.00529745]
[1641723149699,2.60351915,41482.0,41481.0,0.00529745]
[1641723149902,3.00131915,41482.0,41481.0,0.00448445]
[1641723150100,3.00131915,41482.0,41470.0,0.87700205]
[1641723150101,1.05,41481.0,41470.0,0.87700205]
[1641723150304,0.29583177,41471.0,41470.0,0.87700205]
[1641723150499,0.29583177,41471.0,41470.0,0.87200205]
[1641723150500,0.71909408,41471.0,41470.0,0.87200205]
[1641723150701,1.42557021,41471.0,41470.0,0.87200205]
[1641723150898,1.70227821,41471.0,41470.0,0.87200205]
[1641723151304,1.05,41470.0,41468.0,0.03084711]
[1641723151501,1.05,41470.0,41468.0,0.01027711]
[1641723151701,0.3126127,41469.0,41468.0,0.01027711]
[1641723151905,1.0249227,41469.0,41468.0,0.01027711]
[1641723152100,1.0249227,41469.0,41464.0,0.00032]
[1641723152302,1.539018,41469.0,41464.0,0.00032]
[1641723152506,1.539018,41469.0,41462.0,0.0461609]
[1641723152507,0.8626127,41468.0,41462.0,0.0461609]
[1641723152758,0.8626127,41468.0,41456.0,0.00032]
[1641723152759,0.8,41461.0,41457.0,0.44531178]
[1641723152958,0.8,41461.0,41453.0,0.0328237]
[1641723152959,0.276708,41457.0,41453.0,0.0328237]
[1641723153159,1.11011,41456.0,41453.0,0.0328237]
[1641723153357,1.11011,41456.0,41449.0,0.00329117]
[1641723153358,0.3,41453.0,41449.0,0.00329117]
[1641723153562,0.97982555,41452.0,41449.0,0.00329117]
[1641723153758,0.91947255,41452.0,41449.0,0.00329117]
[1641723154158,0.87167255,41452.0,41449.0,0.00329117]
[1641723154357,0.86167255,41452.0,41450.0,5.30177085]
[1641723154559,0.86167255,41452.0,41450.0,5.30210708]
[1641723154758,0.86167255,41452.0,41450.0,5.01122777]
[1641723154959,0.4289247,41452.0,41451.0,1.7491147]
[1641723155158,0.4289247,41452.0,41451.0,0.458572]
[1641723155359,0.4369247,41452.0,41451.0,0.458572]
[1641723155557,0.4369247,41452.0,41451.0,0.07207]
[1641723155758,0.4369247,41452.0,41451.0,0.458572]
[1641723155958,0.4369247,41452.0,41451.0,0.73535166]
[1641723156159,0.4369247,41452.0,41451.0,1.09192682]
[1641723156411,0.00460292,41462.0,41455.0,0.060317]
[1641723156412,0.21601029,41462.0,41455.0,0.060317]
[1641723156604,0.21601029,41462.0,41456.0,0.38778217]
[1641723156804,0.21601029,41462.0,41457.0,0.060316]
[1641723157005,0.21601029,41462.0,41461.0,1.14996613]
[1641723157006,0.00460292,41462.0,41461.0,1.14996613]
[1641723157208,0.00460292,41462.0,41461.0,2.18387246]
[1641723157404,0.00046388,41469.0,41461.0,2.73039833]
[1641723157605,0.00046388,41469.0,41462.0,0.68646813]
[1641723157806,0.00046388,41469.0,41465.0,0.09996613]
[1641723158104,0.20144375,41479.0,41466.0,0.386502]
[1641723158306,0.20144375,41479.0,41472.0,0.26547443]
[1641723158506,0.00128375,41479.0,41473.0,0.69624099]
[1641723158705,1.17622,41484.0,41473.0,0.33803393]
[1641723159106,1.17622,41484.0,41472.0,0.32916566]
[1641723159107,0.276708,41482.0,41472.0,0.32916566]
[1641723159410,0.20052,41477.0,41473.0,0.035]
[1641723159608,0.276708,41476.0,41473.0,0.095305]
[1641723159810,0.20052,41477.0,41473.0,0.095305]
[1641723160007,0.72333,41476.0,41473.0,0.095305]
[1641723160651,0.72333,41476.0,41473.0,0.060305]
[1641723161051,0.72333,41476.0,41474.0,0.00032533]
[1641723161454,0.72833,41476.0,41474.0,0.00032533]
[1641723162252,0.72833,41476.0,41474.0,0.44876705]
[1641723162651,0.72333,41476.0,41474.0,0.44876705]
[1641723162855,0.72333,41476.0,41474.0,0.00033064]
[1641723163051,0.72333,41476.0,41475.0,0.25611535]
[1641723163253,0.72333,41476.0,41475.0,0.25667637]
[1641723163453,0.72933,41476.0,41475.0,0.25667637]
[1641723163653,0.72933,41476.0,41475.0,0.64317837]
[1641723164505,0.72333,41476.0,41475.0,0.38739365]
[1641723165305,0.72333,41476.0,41475.0,0.46768165]
[1641723165504,0.72333,41476.0,41475.0,0.46801228]
[1641723165708,0.71949,41476.0,41475.0,1.71768165]
[1641723165907,0.000696,41490.0,41476.0,1.25]
[1641723166108,0.000696,41490.0,41487.0,0.69711156]
[1641723166312,0.000696,41490.0,41488.0,0.34602403]
[1641723166507,0.000696,41490.0,41489.0,0.386502]
[1641723166707,0.000696,41490.0,41489.0,0.98790559]
[1641723167105,0.000696,41490.0,41489.0,0.32343249]
[1641723167306,0.000696,41490.0,41489.0,0.33143249]
[1641723168178,0.00115991,41490.0,41489.0,0.61601835]
[1641723168579,0.00115991,41490.0,41489.0,0.60801835]
[1641723168780,0.00115991,41490.0,41489.0,0.59514433]
[1641723168979,0.00115991,41490.0,41489.0,0.28458586]
[1641723169281,0.00115991,41490.0,41489.0,0.00055002]
[1641723169282,0.72422991,41490.0,41489.0,0.00055002]
[1641723169479,0.72422991,41490.0,41489.0,0.00655002]
[1641723170286,1.00093791,41490.0,41489.0,0.00655002]
[1641723170683,1.00093791,41490.0,41489.0,0.00055002]
[1641723171081,1.42354457,41490.0,41489.0,0.00055002]
[1641723171510,1.4247741,41490.0,41489.0,0.00055002]
[1641723171711,1.00216744,41490.0,41489.0,0.00055002]
[1641723172213,1.89773438,41490.0,41489.0,0.00055002]
[1641723172411,1.73514861,41490.0,41489.0,0.00055002]
[1641723172610,1.38514861,41490.0,41489.0,0.00055002]
[1641723173211,0.36583636,41484.0,41480.0,0.12113302]
[1641723173411,0.72307,41483.0,41480.0,0.12113302]
[1641723173609,0.276708,41482.0,41480.0,0.00055002]
[1641723173810,0.72307,41481.0,41480.0,0.00055002]
[1641723174011,1.28933494,41481.0,41480.0,0.00055002]
[1641723175454,1.28933494,41481.0,41480.0,0.00155002]
[1641723175654,1.33713494,41481.0,41480.0,0.00155002]
[1641723175853,1.43834301,41481.0,41480.0,0.00155002]
[1641723176055,2.04509411,41481.0,41480.0,0.00155002]
[1641723176253,2.79509411,41481.0,41480.0,0.00155002]
[1641723176654,2.04509411,41481.0,41480.0,0.00055002]
[1641723176954,1.34868607,41481.0,41480.0,0.00055002]
[1641723177856,1.24878607,41481.0,41480.0,0.00055002]
[1641723178056,1.1492499,41481.0,41478.0,0.00117932]
[1641723178256,0.276708,41479.0,41478.0,0.00117932]
[1641723178455,1.12033385,41479.0,41478.0,0.00117932]
[1641723179404,1.12033385,41479.0,41478.0,0.00150987]
[1641723179803,1.07253385,41479.0,41478.0,0.00156987]
[1641723180404,1.07253385,41479.0,41478.0,0.3065369]
[1641723180804,1.07253385,41479.0,41478.0,0.00156987]
[1641723181007,1.1737754,41479.0,41478.0,0.00156987]
[1641723181207,1.1737754,41479.0,41478.0,0.00123934]
[1641723181412,1.0737754,41479.0,41478.0,0.00123934]
[1641723181607,1.07253385,41479.0,41478.0,0.00123934]
[1641723182006,1.07253385,41479.0,41478.0,0.00156989]
[1641723182207,1.07253385,41479.0,41478.0,0.00123934]
[1641723182853,1.07253385,41479.0,41478.0,0.00156989]
[1641723183053,1.07253385,41479.0,41478.0,0.00123934]
[1641723183255,1.07299793,41479.0,41478.0,0.00123934]
[1641723183455,1.17299793,41479.0,41478.0,0.00123934]
[1641723183653,1.17299793,41479.0,41478.0,0.00155831]
[1641723183854,1.07299793,41479.0,41478.0,0.00122776]
[1641723185557,0.79628993,41479.0,41478.0,0.37252463]
[1641723185956,0.79628993,41479.0,41478.0,0.3728436]
[1641723186156,0.79628993,41479.0,41478.0,0.37252463]
[1641723187006,0.79628993,41479.0,41478.0,0.36885564]
[1641723187208,0.79628993,41479.0,41478.0,0.36853667]
[1641723187407,0.79628993,41479.0,41478.0,0.37253667]
[1641723187808,0.79628993,41479.0,41478.0,0.00433101]
[1641723188011,1.07299793,41479.0,41478.0,0.00433101]
[1641723188208,0.79628993,41479.0,41478.0,0.00496918]
[1641723188409,0.72353408,41479.0,41478.0,0.00496918]
[1641723188606,0.72353408,41479.0,41478.0,0.00096918]
[1641723189410,0.73653408,41479.0,41478.0,0.00996918]
[1641723190357,1.01324208,41479.0,41478.0,0.00996918]
[1641723190758,1.00024208,41479.0,41478.0,0.00096918]
[1641723191062,1.2981123,41479.0,41478.0,0.00096918]
[1641723191257,1.3981123,41479.0,41478.0,0.00096918]
[1641723191462,1.11424208,41479.0,41478.0,0.00896871]
[1641723191858,1.11424208,41479.0,41478.0,0.00396871]
[1641723192459,1.10924208,41479.0,41478.0,0.00396871]
[1641723192662,0.99524208,41479.0,41478.0,0.00033054]
[1641723193158,0.99524208,41479.0,41478.0,0.00105313]
[1641723193159,1.09570616,41479.0,41478.0,0.00105313]
[1641723193363,1.12070616,41479.0,41478.0,0.00105313]
[1641723194607,1.09570616,41479.0,41478.0,0.00105313]
[1641723195008,1.09570616,41479.0,41478.0,0.00111313]
[1641723195409,1.11570616,41479.0,41478.0,0.00211313]
[1641723195608,1.01570616,41479.0,41478.0,0.00211313]
[1641723195808,1.01570616,41479.0,41478.0,0.00244368]
[1641723196007,1.01570616,41479.0,41478.0,0.00211314]
[1641723196608,1.09570616,41479.0,41478.0,0.00111314]
[1641723197411,1.11470616,41479.0,41478.0,0.00411314]
[1641723198153,1.01459014,41479.0,41478.0,0.0043501]
[1641723198652,0.99559014,41479.0,41478.0,0.0013501]
[1641723199056,0.99559014,41479.0,41478.0,0.00168065]
[1641723199253,0.99559014,41479.0,41478.0,0.0013501]